Cogmind - Beta 15 @@@ ROGUE MODE // 2025.09.02 @ 11:13:19 Player: shapeshifter Result: Destroyed by F2-Y7R(R) with Subdweller Laser Performance ------------- Evolutions (0) 0 Regions Visited (3) 600 Robots Destroyed (19) 95 Value Destroyed (359) 359 Prototype IDs (0) 0 Alien Tech Used (0) 0 Bonus (0) 0 TOTAL SCORE: 1054 Bonus ------- None Cogmind --------- Core Integrity 0/250 Matter 229/300 Energy 200/200 System Corruption 0% Temperature Cool (6) Movement Treading (160) Location -10/Subcaves Parts ------- > --- POWER (1) -------- Subdweller Power Source > --- PROPULSION (2) --- Light Treads Light Treads > --- UTILITY (2) ------ Large Storage Unit Seismic Detector > --- WEAPON (2) ------- Subdweller Machine Gun Slug Cannon > --- INVENTORY (15) --- Subdweller Power Source Wheel Compact Wheel Disposable Heat Sink Large Storage Unit Medium Matter Pod (100) Improved Terrain Scanner Scrap Shield Bomb Drone Bay EM Pulse Gun Light Assault Rifle Light Assault Rifle Mining Laser Peak State ------------ > --- POWER ------------ Subdweller Power Source > --- PROPULSION ------- Light Treads Light Treads > --- UTILITY ---------- Large Storage Unit Seismic Detector > --- WEAPON ----------- Subdweller Machine Gun Slug Cannon > --- INVENTORY -------- Subdweller Power Source Wheel Compact Wheel Disposable Heat Sink Large Storage Unit Medium Matter Pod Improved Terrain Scanner Scrap Shield Bomb Drone Bay EM Pulse Gun Light Assault Rifle Light Assault Rifle Mining Laser [Rating: 15] Favorites ----------- Power Ion Engine Engine Ion Engine Propulsion Light Treads Treads Light Treads Utility Seismic Detector Device Seismic Detector Storage Large Storage Unit Weapon Light Assault Rifle Energy Gun EM Pulse Gun Ballistic Gun Light Assault Rifle Ballistic Cannon Slug Cannon Special Weapon Mining Laser Build | -11 -10 -10 -10 ------- Run | Yrd Mat Min Sub Slots Evolved . | . . . . Power . | . . . . Propulsion . | . . . . Utility . | . . . . Weapon . | . . . . Parts Attached 14 | 7 2 2 3 Power 2 | 1 . . 1 Engine 2 | 1 . . 1 Core . | . . . . Reactor . | . . . . Propulsion 2 | 2 . . . Treads 2 | 2 . . . Leg . | . . . . Wheel . | . . . . Hover . | . . . . Flight . | . . . . Utility 3 | 2 1 . . Device 1 | 1 . . . Storage 2 | 1 1 . . Processor . | . . . . Hackware . | . . . . Protection . | . . . . Artifact . | . . . . Weapon 7 | 2 1 2 2 Energy Gun 2 | 2 . . . Energy Cannon . | . . . . Ballistic Gun 3 | . 1 1 1 Ballistic Cannon 1 | . . . 1 Launcher . | . . . . Special Weapon 1 | . . 1 . Impact Weapon . | . . . . Slashing Weapon . | . . . . Piercing Weapon . | . . . . Special Melee Weapon . | . . . . Unidentified Prototypes . | . . . . Parts Lost 1 | . . . 1 Power . | . . . . Propulsion . | . . . . Utility . | . . . . Weapon 1 | . . . 1 Highest Loss Streak 1 | . . . 1 To Critical Strikes . | . . . . Average Backups 11 | 4 8 12 13 Power . | . 1 1 1 Propulsion 2 | 2 3 3 2 Utility 3 | . 1 3 5 Weapon 4 | . 2 5 4 Tool/Special . | . . . . Unused Backups 16 | . 1 1 14 Power 2 | . . . 2 Propulsion 4 | . . 1 3 Utility 6 | . . . 6 Weapon 4 | . 1 . 3 Tool/Special . | . . . . Average Slot Usage (%) 100 | . 100 100 100 Engine 14 | . 14 14 14 Treads 28 | . 28 28 28 Device 14 | . 14 14 14 Storage 14 | . 14 14 14 Energy Gun 6 | . 19 6 . Ballistic Gun 13 | . 8 14 16 Ballistic Cannon 3 | . . . 11 Special Weapon 4 | . . 7 . Peak Build Rating 15 | 7 8 9 15 Average Rating 9 | 5 7 8 13 On Entrance 6 | . 7 8 9 Naked Turns . | . . . . Heaviest Build 37 | 15 30 29 37 Greatest Support 40 | 40 40 40 40 Greatest Overweight (x) . | . . . . Average Overweight (x) . | . . . . Largest Inventory Capacity 15 | 8 15 15 15 Average Capacity 14 | 7 14 15 15 Most Carried 15 | 7 11 15 15 Average Carried 12 | 4 8 13 14 Final Capacity 15 | 8 15 15 15 Final Carried 15 | 6 11 15 15 Class Distribution -------------------- 100% | Mutant Dominant Class ---------------- Mutant | -10/Materials Mutant | -10/Mines Mutant | -10/Subcaves Resources | -11 -10 -10 -10 ----------- Run | Yrd Mat Min Sub Matter Collected 537 | 270 20 124 123 Remotely . | . . . . Salvage Created 488 | 182 203 . 103 Parts 42 | 14 19 . 9 Haulers Intercepted . | . . . . Recyclers Shooed 2 | 1 1 . . Parts Field Recycled . | . . . . Retrieved Matter . | . . . . Parts Self-Destructed 4 | . . . 4 Prevented . | . . . . Kills | -11 -10 -10 -10 ------- Run | Yrd Mat Min Sub Combat Hostiles Destroyed 12 | . 7 . 5 Guns 8 | . 7 . 1 Cannons 4 | . . . 4 Classes Destroyed 7 | 2 4 . 1 Builder 1 | . 1 . . Tunneler 4 | 4 . . . Recycler 1 | 1 . . . Watcher 1 | . 1 . . Swarmer 6 | . 6 . . Grunt 1 | . 1 . . Subdweller 5 | . . . 5 Best Kill Streak 5 | 2 5 . 3 Combat Bots Only 3 | . 3 . 3 Max Kills in Single Turn 1 | 1 1 . 1 Gunslinging . | . . . . Exploded . | . . . . Melee . | . . . . Uniques/NPCs Destroyed . | . . . . Combat | -11 -10 -10 -10 -------- Run | Yrd Mat Min Sub Hostile Shots Fired 77 | . 36 . 41 Missed 27 | . 18 . 9 Hits 50 | . 18 . 32 Projectile 50 | . 18 . 32 Critical Strikes 1 | . 1 . . Damage Taken 868 | . 186 . 682 Core 262 | . 69 . 193 Absorbed by Shields . | . . . . Core Remaining (%) 100 | 100 . . . Volleys Fired 108 | 14 28 45 21 Largest 2 | 2 2 1 2 Hottest 100 | 90 90 100 70 Shots Fired 171 | 28 56 45 42 Gun 105 | 28 56 . 21 Cannon 21 | . . . 21 Launcher . | . . . . Special 45 | . . 45 . Kinetic 56 | . 14 . 42 Thermal 73 | 14 14 45 . Explosive . | . . . . Electromagnetic 42 | 14 28 . . Robot Hit Streak 11 | 3 4 . 11 Robot Miss Streak 4 | 4 4 . 1 Penetration Max . | . . . . Secondary Targets 1 | . 1 . . Max Gunslinging Chain 1 | . 1 . . Shots Hit Robots 69 | 11 25 . 33 Core Hits 31 | 6 13 . 12 Critical Kills 3 | . 1 . 2 Critical Parts Destroyed . | . . . . Critical Strikes 6 | . 2 . 4 Burn 1 | . 1 . . Destroy 5 | . 1 . 4 Melee Attacks . | . . . . Impact . | . . . . Slashing . | . . . . Piercing . | . . . . Sneak Attacks . | . . . . Combat Hostiles . | . . . . Follow-up Attacks . | . . . . Damage Inflicted 1130 | 140 425 . 565 Guns 640 | 140 308 . 192 Cannons 373 | . . . 373 Explosions 117 | . 117 . . Melee . | . . . . Ramming . | . . . . Kinetic 610 | . 45 . 565 Thermal 259 | 51 208 . . Explosive . | . . . . Electromagnetic 261 | 89 172 . . Impact . | . . . . Slashing . | . . . . Piercing . | . . . . Highest Corruption . | . . . . Average Corruption . | . . . . Corruption Purged . | . . . . Corruption Blocked . | . . . . Overload Shots . | . . . . Overflow Damage . | . . . . Projectiles . | . . . . Explosions . | . . . . Melee . | . . . . Knockbacks 1 | . . . 1 Impact . | . . . . Kinetic 1 | . . . 1 Secondary . | . . . . Self-Inflicted Damage 28 | . 28 . . Shots 1 | . 1 . . Rammed . | . . . . Targets Rammed . | . . . . Kicked . | . . . . Crushed . | . . . . Highest Temperature 222 | 142 222 150 . Average Temperature 53 | 44 56 54 . Received Heat Transfer 60 | . 36 . 24 Siege Activations . | . . . . Martial Activations . | . . . . Shielding Activations . | . . . . Robots Disrupted . | . . . . Combat Hostiles . | . . . . Robots Corrupted . | . . . . Combat Hostiles . | . . . . Parts Fried . | . . . . Impact Corruptions . | . . . . Robots Melted . | . . . . Combat Hostiles . | . . . . Parts Melted . | . . . . Heat Transferred 681 | 148 533 . . Parts Sabotaged . | . . . . Parts Stolen . | . . . . Parts Stripped . | . . . . Power Chain Reactions 2 | . 2 . . Alert | -11 -10 -10 -10 ------- Run | Yrd Mat Min Sub Maximum Alert Level . | . . . . Low Security (%) 100 | 100 100 100 . Level 1 . | . . . . Level 2 . | . . . . Level 3 . | . . . . Level 4 . | . . . . Level 5 . | . . . . High Security . | . . . . Max Security . | . . . . Peak Influence 107 | 10 107 30 . Initial 30 | . . 30 . Average 10 | 1 59 . . Influence Increases 238 | 25 211 2 . Destroy 0b10 Robot/C 140 | . 140 . . Destroy 0b10 Robot/NC 35 | 25 10 . . Destroy Leader 32 | . 32 . . Successful Hack 8 | . 8 . . Disable Machine 15 | . 15 . . Destroy Structure 8 | . 6 2 . Influence Decreases 238 | 25 134 79 . Entered New Map 47 | . . 47 . Time Decay 191 | 25 134 32 . Squads Dispatched 1 | . 1 . . Investigation . | . . . . Extermination . | . . . . Reinforcement 1 | . 1 . . Assault . | . . . . Garrison . | . . . . Intercept . | . . . . Searches Triggered . | . . . . Construction Impeded . | . . . . Haulers Reinforced . | . . . . Active Scanning Responses . | . . . . Cargo Convoy Interrupts . | . . . . Stealth | -11 -10 -10 -10 --------- Run | Yrd Mat Min Sub Distress Signals 2 | . 2 . . Communications Jammed . | . . . . Distress Signals . | . . . . Times Spotted 19 | . 13 . 6 Peak Tracking Total 5 | . 5 . 2 Tactical Retreats . | . . . . Traps | -11 -10 -10 -10 ------- Run | Yrd Mat Min Sub Traps Triggered . | . . . . Indirectly . | . . . . Trap Hack Attempts . | . . . . Triggered . | . . . . Disarmed . | . . . . Reprogrammed . | . . . . Reused . | . . . . Traps Extracted . | . . . . Installed . | . . . . Triggered . | . . . . Machines | -11 -10 -10 -10 ---------- Run | Yrd Mat Min Sub Machines Disabled 1 | . 1 . . Max in Single Turn 1 | . 1 . . Machines Repaired . | . . . . Machines Dismantled . | . . . . Machines Sabotaged . | . . . . Overloaded Fab Kills . | . . . . Hacking | -11 -10 -10 -10 --------- Run | Yrd Mat Min Sub Machines Accessed 3 | . 2 1 . Terminals 2 | . 2 . . Fabricators . | . . . . Repair Stations . | . . . . Recycling Units . | . . . . Scanalyzers . | . . . . Garrison Access . | . . . . Total Hacks 6 | . 5 1 . Successful 3 | . 2 1 . Failed 3 | . 3 . . Catastrophic . | . . . . Database Lockouts . | . . . . Manual 5 | . 5 . . Terminals 5 | . 5 . . Fabricators . | . . . . Repair Stations . | . . . . Recycling Units . | . . . . Scanalyzers . | . . . . Garrison Access . | . . . . Terminal Hacks 1 | . . 1 . Open Door 1 | . . 1 . Fabricator Hacks . | . . . . Repair Station Hacks . | . . . . Recycling Unit Hacks . | . . . . Scanalyzer . | . . . . Garrison Access Hacks . | . . . . Unauthorized Hacks 2 | . 2 . . Terminals 2 | . 2 . . Skim 2 | . 2 . . Fabricators . | . . . . Repair Stations . | . . . . Recycling Units . | . . . . Scanalyzers . | . . . . Garrison Access . | . . . . Data Cores Recovered . | . . . . Used . | . . . . Hacking Detections 1 | . 1 . . Full Trace Events . | . . . . Feedback Events . | . . . . Feedback Blocked . | . . . . Robot Schematics Acquired . | . . . . Robots Built . | . . . . Authchips . | . . . . Time . | . . . . Total Robot Build Rating . | . . . . Part Schematics Acquired . | . . . . Parts Built . | . . . . Authchips . | . . . . Time . | . . . . Total Part Build Rating . | . . . . Parts Repaired . | . . . . Time . | . . . . Parts Recycled . | . . . . Recycled Matter . | . . . . Retrieved Matter . | . . . . Retrieved Components . | . . . . Parts Scanalyzed . | . . . . Part Schematics Acquired . | . . . . Parts Damaged . | . . . . Bothacking | -11 -10 -10 -10 ------------ Run | Yrd Mat Min Sub Used RIF Installer . | . . . . Robots Hacked . | . . . . Non-combat . | . . . . Combat . | . . . . Robot Hacks Applied . | . . . . Relay Couplers Released . | . . . . Fabnet Peak Effective % . | . . . . Robots Rewired . | . . . . Allies Hacked . | . . . . Hacks Repelled . | . . . . Allies | -11 -10 -10 -10 -------- Run | Yrd Mat Min Sub Total Allies 1 | . . 1 . Largest Group 1 | . . 1 . Highest-Rated Group 31 | . . 31 . Highest-Rated Ally 31 | . . 31 . Total Orders . | . . . . Ally Attacks . | . . . . Total Damage . | . . . . Kills . | . . . . Allies Corrupted . | . . . . Allies Melted . | . . . . Intel | -11 -10 -10 -10 ------- Run | Yrd Mat Min Sub Active Infowar (turns) 2189 | 11 304 1293 581 Seismic 2189 | 11 304 1293 581 Robot Analysis Total . | . . . . Derelict Logs Recovered 2 | . . 1 1 Drone Launches . | . . . . Drone Recoveries . | . . . . Exploration | -11 -10 -10 -10 ------------- Run | Yrd Mat Min Sub Turns Passed 2389 | 211 304 1293 581 Spaces Moved 1202 | 110 133 643 316 Core 27 | 27 . . . Treads 1175 | 83 133 643 316 Legs . | . . . . Wheels . | . . . . Hover . | . . . . Flight . | . . . . Fastest Speed 50 | 50 160 160 160 Average Speed 157 | 133 160 160 160 Slowest Speed 160 | 160 160 160 160 Overloaded Moves . | . . . . Propulsion Burnouts . | . . . . Robots Hopped . | . . . . Potential Cave-ins . | . . . . Cave-ins Triggered . | . . . . Exploration Rate (%) 34 | 5 24 90 19 Regions Visited 3 Branch Regions 2 Pre-discovered Areas 1 | . . . 1 Known Exits Taken . | . . . . Unknown Exits Taken 3 | 1 1 1 . Scrap Searched 3 | . . 2 1 Spaces Dug 22 | . . 22 . Terrain Destroyed 34 | . 4 24 6 Melee . | . . . . Projectile 30 | . . 24 6 AOE 4 | . 4 . . Terrain Rammed . | . . . . Walls Destroyed . | . . . . Machines Disabled . | . . . . Actions | -11 -10 -10 -10 --------- Run | Yrd Mat Min Sub Total 1447 | 147 171 772 357 Wait 88 | 4 . 78 6 Move 1199 | 109 132 642 316 Hop . | . . . . Pick Up 28 | 13 7 4 4 Fast Attach . | . . . . Attach 8 | 7 . . 1 Detach . | . . . . Swap 7 | . 2 2 3 Drop 9 | . 2 1 6 Fire 108 | 14 28 45 21 Melee . | . . . . Ram . | . . . . Kick . | . . . . Crush . | . . . . Escape Stasis . | . . . . Rewire . | . . . . Trap . | . . . . Miscellaneous . | . . . . Route ------- -11/Scrapyard -10/Materials -10/Mines (discovered 3 exits: [*Mat x2] / [*Sub]) -10/Subcaves (discovered 1 exit: [*Mat]) History --------- Turn | Location | Event 10 | -11/Scrapyard | Discovered new exit (range 15) 212 | -11/Scrapyard | Entered Materials 304 | -10/Materials | Build established: Mutant 352 | -10/Materials | Discovered new exit (range 13) 516 | -10/Materials | Entered Mines 549 | -10/Mines | Found the Drone Emporium 563 | -10/Mines | Found Prototype Device 601 | -10/Mines | Discovered new exit (range 15) 869 | -10/Mines | Discovered new exit (range 13) 873 | -10/Mines | Received a Mining Laser from a helpful Derelict 997 | -10/Mines | Learned 2 Materials zone layouts 1011 | -10/Mines | Assembled infested the area 1016 | -10/Mines | Assisted by a Guerilla fighting off Assembled 1803 | -10/Mines | Discovered new exit (range 5) 1809 | -10/Mines | Entered Subcaves 1980 | -10/Subcaves | Core integrity fell below 50% 2118 | -10/Subcaves | Discovered new exit (range 9) 2152 | -10/Subcaves | Core integrity fell below 20% 2208 | -10/Subcaves | Shifting Twisted Machinery released Sub. Machine Gun 2218 | -10/Subcaves | Shifting Twisted Machinery released Sub. Beam Cannon 2390 | -10/Subcaves | Destroyed by F2-Y7R(R) with Subdweller Laser Last Messages --------------- Sink. 01998_ Dropped Ion Engine. 01999_ Dropped Com. Wheel. 02000_ Acquired Sub. Power Source. 02002_ Acquired Disposable Heat Sink. 02023_ Subatomizers dissect the Sub. Laser. 02118_ EXIT=FOUND 02123_ DW-SCR(R) suffers critical hit (Destroy). 02138_ U1-HCV(R) suffers critical hit (Destroy). 02141_ U1-HCV(R) destroyed. 02157_ DW-SCR(R) destroyed. 02160_ Acquired 13 matter. 02165_ Dropped Lgt. Assault Rifle. 02175_ Acquired 8 matter. 02186_ Acquired 4 matter. Sub. Machine Gun falls loose from the Twisted Machinery. Sub. Beam Cannon falls loose from the Twisted Machinery. Map ----- +----------------------------------------------------+ | ?## ???##"""""""" "]"##????????????????????????? | | ??# ????#""""" " #?????????????????????????? | | ??#?????# " #?????????????????????????? | | ????????## "" " #??????????????????????? | | ?????????#### ###""" ##??????????????????????? | | ??????????### ##?# #???????????????????????? | | ?????????## ##? ??????????????????????? | | ????????## " #?# ?????????????????????? | | ????????# #####?? ????????????????????? | | ????????#### ##?????? ?## ???????????????????? | | ???????????## #???????##??? #??????????????????? | | ???????????## #?????????????#??????????????????? | | ??????????## ####?????#???????????????????????? | | ????#####?# ## ??### ???????????????????????? | | ???## ### ### ### ????????????????????????? | | ?### ## #?# ????????????????????????? | | ?# ##?# #????????????????????????? | | ?# ##??# ##???????????????????????? | | ?## #####???## ##??????????????????????? | | ??## ##??######## #??????????????????????? | | ??## #??## #?## ##??????????????????????? | | ??# #??# ### ###???????????????????????? | | ??# #?## ## #???????? ???????????????? | | ??# #?# #?????? ????????????????? | | ??## ### ###### ####??????????????? | | ??## @ ;#?????????????? | | ??# R%#???????????????? | | ?## ## ### # #??????????????? | | ?# #### ##?????????????????????? | | ?# ##??### #######??????????????????????? | | ?## ###???## ##????????????????????????????? | | ??#### #????# #????????????????????????????? | | ?????## #????# ##????????????????????????????? | | ??????## #????# ##????????????????????????????? | | ???????# #???## #????????????????????????????? | | ???????# ##??# ##????????????????????????????? | | ???????## #??# #?????????????????????????????? | | ????????## ##?# #?????????????????????????????? | | ?????????## #?## ?????????????????????????????? | | ??????????## #?? # #?????????????????????????????? | | ???????????###?#####?????????????????????????????? | | ?????????????????????????????????????????????????? | | ?????????????????????????????????????????????????? | | ?????????????????????????????????????????????????? | | ?????????????????????????????????????????????????? | | ?????????????????????????????????????????????????? | | ?????????????????????????????????????????????????? | | ?????????????????????????????????????????????????? | | ?????????????????????????????????????????????????? | | ?????????????????????????????????????????????????? | +----------------------------------------------------+ Best States ------------- Heat Dissipation 25 Energy Generation 15 Energy Capacity 250 Matter Stores 300 Matter Capacity 300 Sight Range 16 Terrain Scan Density 10 Evasion (%) 50 Recoil Reduction 2 Item Schematics ----------------- None Robot Schematics ------------------ None Fabricated ------------ Nothing Repaired ---------- Nothing Alien Tech Used ----------------- None Achievements -------------- None Challenges ------------ None Game ------ Seed AntigravVortexMantle Manual? 0 Play Time 00:10:00 Cumulative 250.6 hours Start 2025.09.02 @ 11:05:01 End 2025.09.02 @ 11:13:19 Sessions 1 Manual Loads 0 Difficulty Rogue Special Mode None Game No. 365 Rogue 365 Adventurer 0 Explorer 0 Win Type - Total 5 Types 4/0/1/0/0/0/0/0/0/0 Lore% 82 Gallery% 79 Achievement% 61 Wizard Run 0 Options --------- Layout 1 ASCII 0 Keyboard 0 Movement Mouse Keybinds 0 Fullscreen 1 Font 32/SmallcapsGlow Map View 50x35 Zoom Use 0% Tactical HUD 1 Map Filters NONE Filters NONE Steam 1 RUN: ce1e0f91-cb17-4894-9aa3-450ab3d69c45